bitfinex/quotes_ETHUSD_20260308
["timestamp","ask_amount","ask_price","bid_price","bid_amount"]
[1772940530696,1.658,1949.8,1949.6,1.51739395]
[1772940531521,1.658,1949.8,1949.6,1.51849395]
[1772940540633,1.662,1949.8,1949.6,1.51849395]
[1772940540931,0.001,1949.8,1949.6,1.51849395]
[1772940541138,1.662,1949.8,1949.6,1.51849395]
[1772940541833,0.001,1949.8,1949.6,1.51849395]
[1772940542015,0.00153886,1950.0,1949.8,1.51739395]
[1772940542219,3.05973871,1950.0,1949.6,2.80079844]
[1772940542413,3.05973871,1950.0,1949.7,1.47041253]
[1772940545729,3.05973871,1950.0,1949.7,2.75265946]
[1772940546540,1.66353886,1950.0,1949.8,1.39828119]
[1772940551074,0.00153886,1950.0,1949.8,1.39828119]
[1772940551371,1.66653886,1950.0,1949.8,2.68044652]
[1772940551539,1.28294802,1950.2,1949.8,1.28211952]
[1772940551540,0.001,1950.2,1949.8,1.28211952]
[1772940551746,0.001,1950.2,1949.9,1.39828119]
[1772940553050,1.42883222,1950.5,1950.0,1.39828119]
[1772940554464,1.42883222,1950.5,1949.8,1.39828119]
[1772940555458,1.42883222,1950.3,1949.9,2.68039822]
[1772940558266,2.71068717,1950.3,1949.9,2.68039822]
[1772940558575,2.71068717,1950.3,1949.9,1.28211703]
[1772940558757,1.42883222,1950.3,1950.0,1.39828119]
[1772940558962,1.42883222,1950.4,1950.0,1.39828119]
[1772940559174,3.09583222,1950.4,1950.0,1.39828119]
[1772940559948,4.37764975,1950.4,1950.0,1.39828119]
[1772940560875,2.71048969,1950.6,1950.2,1.39828119]
[1772940561042,1.28165747,1950.6,1950.2,1.39828119]
[1772940561243,1.42883222,1950.5,1950.2,1.39828119]
[1772940563078,2.94865195,1950.7,1950.2,1.28187614]
[1772940563373,1.42883222,1950.6,1950.3,1.39828119]
[1772940565958,2.7105119,1950.6,1950.3,1.39828119]
[1772940567986,0.001,1950.5,1950.3,1.39828119]
[1772940568173,1.669,1950.5,1950.3,1.39828119]
[1772940569785,1.669,1950.5,1950.4,1.39828119]
[1772940569949,1.669,1950.5,1950.2,2.68014836]
[1772940571748,0.001,1950.5,1950.2,2.68014836]
[1772940571947,1.67,1950.5,1950.2,2.68014836]
[1772940572180,3.09883222,1950.5,1950.2,1.39828119]
[1772940572758,1.3220477,1950.4,1950.0,0.0011]
[1772940572960,2.9517594,1950.5,1949.6,0.0011]
[1772940572961,1.3220477,1950.0,1949.6,0.0011]
[1772940573161,1.3220477,1949.8,1949.5,0.0011]
[1772940574783,1.3220477,1949.6,1949.5,0.0011]
[1772940580496,2.60436202,1949.6,1949.5,0.0011]
[1772940580697,1.3220477,1949.6,1949.5,0.0011]
[1772940580862,1.3220477,1949.6,1949.3,0.0011]
[1772940580863,1.3220477,1949.5,1949.3,0.0011]
[1772940586804,4.25136268,1949.6,1949.3,0.0011]
[1772940587173,1.3220477,1949.5,1949.3,0.0011]
[1772940590208,1.3220477,1949.4,1949.1,0.0011]
[1772940591690,2.60549881,1949.4,1949.1,0.0011]
[1772940592000,2.60549881,1949.4,1949.3,0.0011]
[1772940594812,1.3220477,1949.3,1949.1,0.0011]
[1772940596283,1.28257746,1949.2,1949.1,0.0011]
[1772940596620,1.3220477,1949.2,1949.1,0.0011]
[1772940598819,1.28256021,1949.3,1949.1,1.45371616]
[1772940598820,1.67,1949.3,1949.1,1.45371616]
[1772940599313,1.67,1949.3,1949.1,0.0011]
[1772940599507,2.9920477,1949.3,1949.1,0.0011]
[1772940603316,4.27457064,1949.3,1949.1,0.0011]
[1772940603513,1.31495778,1949.2,1948.9,0.0011]
[1772940603712,1.31495778,1949.2,1948.8,0.0011]
[1772940603914,1.31495778,1949.2,1948.8,1.39826576]
[1772940605517,2.59759332,1949.2,1948.8,1.39826576]
[1772940608118,1.28263554,1949.2,1948.8,1.39826576]
[1772940608314,1.31495778,1949.1,1948.8,1.39826576]
[1772940609400,1.31495778,1949.0,1948.5,0.0011]
[1772940609599,1.31495778,1949.0,1948.5,1.39826576]
[1772940610218,1.31495778,1948.8,1948.5,1.39826576]
[1772940610400,2.98995778,1948.8,1948.5,1.39826576]
[1772940610996,2.59773267,1948.9,1948.5,1.39826576]
[1772940611325,1.675,1948.8,1948.5,1.39826576]
[1772940611530,2.98995778,1948.8,1948.5,1.39826576]
[1772940615132,2.98995778,1948.8,1948.6,0.0011]
[1772940616521,4.27280015,1948.8,1948.6,0.0011]
[1772940616727,2.98995778,1948.8,1948.6,0.0011]
[1772940617126,5.13133278,1949.2,1948.6,0.0011]
[1772940617127,0.001,1949.2,1948.7,1.39716576]
[1772940619828,0.001,1949.2,1948.9,1.39716576]
[1772940622553,0.001,1949.2,1949.0,1.39716576]
[1772940625035,0.001,1949.2,1949.1,1.39716576]
[1772940626139,0.001,1949.4,1949.1,1.39716576]
[1772940626442,1.674,1949.4,1949.1,1.39716576]
[1772940626822,2.95645053,1949.4,1949.1,1.39716576]
[1772940627921,1.31495778,1949.6,1949.2,1.39716576]
[1772940628125,0.001,1949.7,1949.2,1.39716576]
[1772940628849,0.001,1949.7,1949.4,1.39716576]
[1772940632240,0.001,1949.7,1949.5,1.39716576]
[1772940639752,0.001,1949.7,1949.5,2.6795403]
[1772940639936,0.001,1949.7,1949.6,1.36312053]
[1772940643542,0.001,1949.7,1949.6,2.64543485]
[1772940646232,1.00979205,1949.9,1949.7,1.36312053]
[1772940646627,1.00979205,1949.9,1949.7,2.64534872]
[1772940648344,1.40461132,1950.0,1949.7,2.64534872]
[1772940648552,0.00153886,1950.0,1949.8,1.36312053]
[1772940648855,0.00153886,1950.0,1949.8,2.64526077]
[1772940649440,0.00153886,1950.0,1949.9,1.36312053]
[1772940651263,5.12790329,1950.5,1949.9,1.36312053]
[1772940651264,3.08607246,1950.5,1950.0,1.36312053]
[1772940652432,4.36779578,1950.5,1950.0,1.36312053]
[1772940653244,2.68579578,1950.5,1950.1,2.64510606]
[1772940653641,1.40407246,1950.5,1950.1,2.64510606]
[1772940654556,3.08707246,1950.5,1950.1,2.64510606]
[1772940658350,4.36879544,1950.5,1950.1,2.64510606]
[1772940658670,1.40307246,1950.4,1950.1,1.36312053]
[1772940658849,1.40307246,1950.4,1950.0,1.28200055]
[1772940659357,1.40307246,1950.4,1950.0,2.64512108]
[1772940659687,2.68579544,1950.5,1950.1,1.36312053]
[1772940660576,1.40407246,1950.5,1950.1,2.64507426]
[1772940660784,1.40407246,1950.5,1950.2,1.36312053]
[1772940662768,0.001,1950.5,1950.2,1.36312053]
[1772940662972,0.001,1950.5,1950.3,1.33497947]
[1772940664678,0.001,1950.4,1950.3,1.33497947]
[1772940666381,0.001,1950.4,1950.3,2.61683354]
[1772940667750,0.001,1950.5,1950.4,1.33497947]
[1772940669381,0.001,1950.5,1950.4,2.61676782]
[1772940673768,1.39733089,1950.5,1950.2,1.33497947]
[1772940673971,1.39733089,1950.5,1949.6,1.33497947]
[1772940673972,0.7160876,1950.3,1949.6,1.33497947]
[1772940674200,1.39633089,1949.6,1949.0,0.00153886]
[1772940674360,1.39633089,1949.4,1948.8,0.0011]
[1772940674556,1.39633089,1949.2,1948.8,0.0011]
[1772940675060,1.39633089,1949.2,1948.8,2.67215894]
[1772940675274,1.39633089,1949.2,1948.9,1.33497947]
[1772940675473,1.39633089,1949.4,1948.9,1.33497947]
[1772940675676,1.39633089,1949.4,1949.0,1.33607947]
[1772940675994,1.39633089,1949.3,1949.0,1.33607947]
[1772940678092,1.39633089,1949.1,1948.9,0.0011]
[1772940678301,1.39633089,1949.1,1948.3,0.0011]
[1772940678302,1.39633089,1948.9,1947.6,1e-08]
[1772940678488,1.39633089,1947.6,1947.0,0.00153886]
[1772940678998,0.00153886,1948.0,1946.7,1.33497947]
[1772940679164,1.39786975,1948.0,1946.7,1.33497947]
[1772940679364,1.39633089,1947.8,1946.7,1.33497947]
[1772940680100,1.39633089,1947.6,1946.7,1.33497947]
[1772940680596,1.39633089,1947.6,1946.8,1.07791919]
[1772940680796,5.13507836,1948.0,1946.8,1.07791919]
[1772940680797,2.68127008,1948.0,1946.8,1.07791919]
[1772940680987,2.68128784,1948.0,1946.8,1.07791919]
[1772940681383,1.39633089,1947.9,1946.8,1.07791919]
[1772940681889,1.39633089,1947.9,1947.0,0.67621683]
[1772940682232,1.28349933,1947.8,1947.1,1.28396076]
[1772940682381,1.28349933,1947.8,1947.1,1.56307099]
[1772940683300,2.67983022,1947.8,1947.1,1.56307099]
[1772940684202,1.39633089,1947.8,1947.1,1.56307099]
[1772940684398,1.41197358,1947.7,1947.1,1.56307099]
[1772940685097,1.39633089,1947.6,1946.7,0.065536]
[1772940685299,1.41197358,1947.7,1945.6,1.287]
[1772940685300,1.39633089,1947.0,1945.6,1.287]
[1772940685470,1.39633089,1947.0,1946.0,1.28621743]
[1772940686081,1.39633089,1947.0,1946.1,2.54355073]
[1772940686275,1.39633089,1947.0,1946.2,1.284]
[1772940686579,1.39633089,1947.0,1946.3,1.28448851]
[1772940686789,1.39633089,1947.3,1946.3,1.28448851]
[1772940687904,1.39633089,1947.3,1946.4,1.297]
[1772940688404,1.28389482,1947.2,1946.5,1.28435653]
[1772940688612,1.39633089,1947.1,1946.5,1.28435653]
[1772940690611,1.39633089,1947.1,1946.4,6.43465543]
[1772940690612,1.39633089,1946.9,1946.4,1.28437764]
[1772940692707,1.39633089,1946.9,1946.3,1.325]
[1772940694113,0.79632001,1946.8,1946.3,1.325]
[1772940694496,0.79632001,1946.7,1946.3,2.60945505]
[1772940695011,2.08045144,1946.9,1946.3,2.60948199]
[1772940695197,0.79632001,1946.9,1946.3,2.60948199]
[1772940696303,2.08047862,1946.8,1946.3,2.60948199]
[1772940696687,0.79632001,1946.7,1946.2,1.28451289]
[1772940699989,0.79632001,1946.7,1946.3,0.0011]
[1772940700891,0.79632001,1946.6,1946.3,0.0011]
[1772940701095,0.79632001,1946.4,1946.2,0.0011]
[1772940701295,0.79632001,1946.4,1946.0,0.00263886]
[1772940712833,0.61735,1946.6,1946.0,0.00263886]
[1772940713138,0.001,1946.9,1946.1,0.0011]
[1772940713139,0.61735,1946.8,1946.1,0.0011]
[1772940713305,0.001,1946.3,1946.1,0.0011]
[1772940713507,0.61735,1946.8,1946.1,0.0011]
[1772940714134,0.45775289,1946.9,1946.1,0.38374999]
[1772940715608,0.45675289,1947.1,1946.3,0.45191768]
[1772940718344,0.45675289,1946.9,1946.4,1.28442252]
[1772940719859,0.45675289,1946.9,1946.4,1.7363402]
[1772940720142,0.45675289,1947.1,1946.5,0.45191768]
[1772940721651,1.28388701,1947.3,1946.5,0.45191768]
[1772940721652,0.91450578,1947.0,1946.5,0.45191768]
[1772940724051,0.91450578,1947.0,1946.6,1.28429055]
[1772940724729,0.91450578,1947.0,1946.6,1.75582733]
[1772940725237,0.001,1946.9,1946.6,1.75582733]
[1772940726859,0.46083329,1947.2,1946.7,0.47153678]
[1772940728665,0.45775289,1947.1,1946.8,1.28415861]
[1772940728959,0.45775289,1947.1,1946.8,1.75569539]
[1772940729162,0.46083329,1947.2,1946.8,1.75569539]
[1772940729972,0.46083329,1947.2,1946.8,1.28415861]
[1772940730684,0.46083329,1947.2,1946.7,1.28422458]
[1772940730685,0.46083329,1947.1,1946.7,1.28422458]
[1772940731768,0.46083329,1947.1,1946.4,5.60921406]
[1772940731769,0.46083329,1947.1,1946.4,1.28442252]
[1772940732354,0.46083329,1947.1,1946.2,5.13820439]
[1772940732748,0.46083329,1946.9,1946.2,5.13820439]
[1772940733361,0.46083329,1946.9,1946.2,1.28455451]
[1772940733863,0.46083329,1946.9,1946.1,1.28568655]
[1772940735231,0.46083329,1946.7,1946.1,0.0011]
[1772940736533,0.46083329,1946.9,1946.2,0.47153678]
[1772940737134,0.46083329,1946.9,1946.2,0.47263678]
[1772940737535,0.001,1946.9,1946.4,0.47153678]
[1772940738362,0.001,1946.9,1946.6,0.47153678]
[1772940738568,0.46083329,1946.8,1946.6,0.47153678]
[1772940742848,0.001,1946.9,1946.6,1.28429055]
[1772940743044,0.001,1946.9,1946.6,1.75582733]
[1772940743372,0.46083329,1947.4,1946.7,0.47153678]
[1772940743969,0.46083329,1947.4,1946.6,1.28429055]
[1772940744788,1.28382512,1947.4,1946.6,1.28429055]
[1772940744967,0.46083329,1947.3,1946.6,1.28429055]
[1772940749056,0.46083329,1947.3,1946.7,0.0011]
[1772940749471,0.46083329,1947.1,1946.7,0.0011]
[1772940754605,0.001,1947.5,1946.8,0.49701083]
[1772940754757,0.34296422,1948.0,1946.8,0.49701083]
[1772940756499,0.34296422,1948.0,1947.0,0.49701083]
[1772940756800,0.25933355,1947.9,1947.0,0.49701083]
[1772940758591,0.25933355,1947.6,1946.9,1.28409266]
[1772940759556,0.25933355,1947.6,1946.7,1.28527349]
[1772940759557,0.25933355,1947.5,1946.7,1.28527349]
[1772940760877,0.25933355,1947.3,1946.7,1.28527349]
[1772940761364,0.25933355,1947.3,1946.8,0.0011]
[1772940763197,0.25933355,1947.2,1946.8,0.0011]
[1772940763994,0.25933355,1947.2,1946.7,0.0011]
[1772940765290,0.25823355,1947.1,1946.7,0.0011]
[1772940770475,0.25823355,1947.0,1946.7,0.0011]
[1772940770676,0.25823355,1947.0,1946.5,0.0011]
[1772940772495,0.25713355,1946.8,1946.5,0.0011]
[1772940773673,0.25713355,1946.8,1946.7,0.0011]
[1772940774603,1.54129216,1946.8,1946.7,0.0011]
[1772940775808,0.001,1947.0,1946.7,0.49811083]
[1772940777009,0.001,1947.0,1946.8,0.49701083]
[1772940780696,0.001,1947.0,1946.9,0.49701083]
[1772940780900,1.628,1947.5,1946.9,0.49701083]
[1772940781089,1.88613355,1947.5,1946.9,0.49701083]
[1772940781420,0.25813355,1947.4,1946.9,0.49701083]
[1772940782086,1.54192714,1947.4,1946.9,1.78106094]
[1772940785327,0.001,1947.3,1946.9,1.78106094]
[1772940785940,0.25913355,1947.3,1946.9,1.78106094]
[1772940787503,0.25913355,1947.3,1946.9,1.28405011]
[1772940787806,0.25913355,1947.3,1947.0,0.47213003]
[1772940788021,0.001,1947.3,1947.0,0.47213003]
[1772940795219,0.001,1947.3,1947.1,0.47213003]
[1772940796541,0.25813355,1947.7,1947.2,0.47213003]
[1772940796761,1.28357788,1947.7,1947.2,0.47213003]
[1772940797055,1.642,1947.6,1947.2,0.47213003]
[1772940797250,0.001,1947.3,1947.2,1.75602485]
[1772940798348,0.001,1947.3,1947.0,0.47323003]
[1772940798537,0.26013355,1947.3,1947.0,0.0011]
[1772940799552,0.25913355,1947.2,1947.0,0.0011]
[1772940806264,1.28482968,1947.3,1947.0,0.47323003]
[1772940806856,0.26973276,1947.2,1947.0,0.0011]
[1772940809666,0.26973276,1947.2,1947.1,0.0011]
[1772940809887,0.27073276,1947.2,1947.0,0.0011]
[1772940813466,0.23440206,1947.0,1946.8,0.0011]
[1772940813687,0.23440206,1947.0,1946.7,0.0011]
[1772940814049,1.28409266,1946.9,1946.7,0.0011]
[1772940814766,1.51847319,1947.0,1946.7,0.0011]
[1772940814970,1.51847319,1947.0,1946.7,0.46343598]
[1772940815474,0.23440206,1946.9,1946.7,0.0011]
[1772940817187,1.51856067,1946.8,1946.5,0.0011]
[1772940817687,0.23440206,1946.6,1946.3,0.9116857]
[1772940818679,0.23440206,1946.6,1946.3,1.37402168]
[1772940820166,0.23440206,1946.5,1946.3,0.9116857]
[1772940820350,1.51875832,1946.6,1946.3,0.9116857]
[1772940820552,1.51875832,1946.6,1946.3,1.37402168]
[1772940822857,1.51875832,1946.6,1946.5,0.0011]
[1772940823052,1.51875832,1946.6,1946.3,1.37402168]
[1772940823380,1.51875832,1946.6,1946.3,1.37512168]
[1772940824287,1.51875832,1946.6,1946.3,0.9127857]
[1772940824903,3.16475832,1946.6,1946.3,0.9127857]
[1772940825383,0.23440206,1946.5,1946.3,0.9127857]
[1772940826480,1.51881871,1946.5,1946.3,0.9127857]
[1772940827887,0.23440206,1946.4,1946.0,0.00263886]
[1772940828192,1.646,1946.5,1946.1,0.46233598]
[1772940828689,3.40799028,1946.5,1946.1,0.46233598]
[1772940829590,0.47757376,1946.4,1946.0,0.46497484]
[1772940829791,0.47757376,1946.4,1946.0,0.00263886]
[1772940830090,0.47757376,1946.4,1946.0,0.46497484]
[1772940830794,1.76206227,1946.3,1946.0,0.46497484]
[1772940834594,1.76206227,1946.3,1946.1,0.0011]
[1772940834794,0.47757376,1946.2,1946.1,0.0011]
[1772940837492,0.47757376,1946.2,1945.9,0.0011]
[1772940838099,0.47757376,1946.3,1945.9,0.46343598]
[1772940838268,1.645,1946.2,1945.9,0.46343598]
[1772940838599,2.12257376,1946.2,1945.9,0.0011]
[1772940838795,0.47757376,1946.1,1945.9,0.0011]
[1772940840701,1.76208803,1946.3,1945.9,0.46343598]
[1772940840907,0.47757376,1946.2,1945.9,0.46343598]
[1772940841117,0.001,1946.4,1945.9,0.46343598]
[1772940841278,2.11111262,1947.0,1946.0,0.46233598]
[1772940841469,0.00153886,1947.0,1946.2,0.46233598]
[1772940842290,0.00153886,1947.0,1946.4,0.46233598]
[1772940842587,0.49256839,1946.9,1946.4,0.46233598]
[1772940843696,0.49256839,1946.9,1946.1,0.45935198]
[1772940843904,1.613,1946.8,1946.1,0.45935198]
[1772940844090,0.49256839,1946.9,1946.1,0.45935198]
[1772940844399,1.7767123,1946.9,1946.3,0.45935198]
[1772940845472,0.49156839,1946.8,1946.3,0.45935198]
[1772940846215,1.77579297,1946.7,1946.3,0.45935198]
[1772940849176,0.49156839,1946.7,1946.3,1.74383589]
[1772940849382,1.28518912,1946.8,1946.4,0.45935198]
[1772940849576,1.77675751,1946.8,1946.4,0.45935198]
[1772940851689,1.77677744,1946.8,1946.5,0.45935198]
[1772940852008,0.49156839,1946.7,1946.2,0.0011]
[1772940852588,0.49156839,1946.5,1946.2,0.0011]
[1772940852787,0.49156839,1946.5,1946.1,0.45935198]
[1772940853610,1.28442252,1946.4,1946.1,0.45935198]
[1772940853818,1.77597515,1946.5,1946.1,0.45935198]
[1772940854009,0.49156839,1946.4,1946.1,0.45935198]
[1772940854518,0.49156839,1946.4,1946.1,1.74397101]
[1772940855714,0.49156839,1946.4,1946.1,0.45935198]
[1772940855933,0.49156839,1946.4,1946.0,0.46045198]
[1772940855934,1.77600547,1946.4,1946.0,0.46045198]
[1772940856096,0.49156839,1946.3,1946.0,0.0011]
[1772940858114,1.77606391,1946.3,1946.0,0.0011]
[1772940858527,0.49156839,1946.3,1946.0,0.0011]
[1772940858820,0.49156839,1946.3,1946.2,0.0011]
[1772940859004,0.49156839,1946.3,1946.0,0.0011]
[1772940860624,0.49156839,1946.2,1946.0,0.0011]
[1772940861694,1.28449029,1946.3,1946.0,0.0011]
[1772940861695,1.77595781,1946.5,1946.0,0.46045198]
[1772940861909,0.49156839,1946.3,1946.0,0.0011]
[1772940862617,0.49156839,1946.2,1946.0,0.0011]
[1772940865025,0.49156839,1946.1,1945.9,0.0011]
[1772940865326,0.49156839,1946.1,1945.8,0.46045198]
[1772940866111,0.49156839,1946.1,1945.8,1.74526648]
[1772940868227,0.20616965,1946.2,1945.9,0.45935198]
[1772940868428,0.20616965,1946.2,1945.8,1.74526648]
[1772940869515,0.20616965,1946.2,1945.4,0.45935198]
[1772940869842,2.00320309,1946.3,1945.5,0.45935198]
[1772940870139,1.638,1946.2,1945.7,0.45935198]
[1772940870308,1.639,1946.1,1945.7,0.45935198]
[1772940870502,1.49066866,1946.3,1945.7,0.45935198]
[1772940870725,1.639,1946.3,1945.7,0.45935198]
[1772940870926,3.12964843,1946.4,1946.0,0.45935198]
[1772940871115,0.001,1946.2,1946.0,0.45935198]
[1772940872233,0.001,1946.2,1946.1,0.45935198]
[1772940873207,0.001,1946.2,1946.0,0.48367992]
[1772940874447,0.001,1946.2,1946.1,0.48367992]
[1772940876549,0.001,1946.2,1946.1,1.76830044]
[1772940876742,0.001,1946.2,1946.1,0.48367992]
[1772940879452,1.28438388,1946.5,1946.0,0.48367992]
[1772940879828,1.49155353,1946.5,1946.0,0.48367992]
[1772940880029,0.20716965,1946.4,1946.0,0.48367992]
[1772940882855,0.20716965,1946.4,1946.0,1.76833918]
[1772940883355,0.001,1946.3,1946.0,1.76833918]
[1772940884256,0.001,1946.3,1946.1,0.48367992]
[1772940889143,0.001,1946.3,1946.2,0.48367992]
[1772940889546,0.19757045,1946.3,1945.9,0.0011]
[1772940890551,0.19657045,1946.1,1945.9,0.0011]
[1772940892242,0.001,1946.3,1946.0,0.48367992]
[1772940893362,2.91626101,1946.7,1946.1,0.48367992]
[1772940893576,3.12089759,1946.7,1946.1,0.48367992]
[1772940894071,1.28516389,1946.8,1946.1,0.48367992]
[1772940894272,0.20463658,1946.7,1946.1,0.48367992]
[1772940894474,0.001,1946.8,1946.2,0.48367992]
[1772940894674,0.001,1946.8,1946.4,0.48367992]
[1772940895578,0.001,1947.2,1946.4,0.48367992]
[1772940895954,0.71867616,1947.0,1946.4,0.48367992]
[1772940896152,0.001,1947.2,1946.4,0.48367992]
[1772940896652,0.001,1947.2,1946.6,0.48367992]
[1772940898975,0.001,1947.2,1946.8,0.48367992]
[1772940901463,0.001,1947.2,1946.9,0.48367992]
[1772940901862,0.20563658,1947.2,1946.3,0.48367992]
[1772940902486,0.20463658,1947.1,1946.3,0.48367992]
[1772940902787,0.20463658,1946.9,1946.2,0.45405769]
[1772940903895,0.20463658,1946.7,1946.2,0.45405769]
[1772940904075,0.20463658,1946.7,1946.1,1.28571806]
[1772940904275,0.20463658,1946.7,1946.1,1.73977575]
[1772940905397,1.28415861,1946.8,1946.2,0.45405769]
[1772940905575,2.83115861,1946.8,1946.2,0.45405769]
[1772940906273,1.28415861,1946.8,1946.3,0.45405769]
[1772940907288,1.48879519,1946.8,1946.3,0.45515769]
[1772940908695,6.69263447,1946.9,1946.4,0.45405769]
[1772940908696,1.28509772,1946.9,1946.4,0.45405769]
[1772940908994,1.28509504,1946.9,1946.4,0.45405769]
[1772940909198,0.001,1946.9,1946.4,0.45405769]
[1772940910898,0.001,1946.9,1946.5,0.45405769]
[1772940915702,0.20563658,1946.9,1946.5,0.45405769]
[1772940915888,0.20563658,1946.9,1946.4,1.73843553]
[1772940916203,0.20563658,1946.9,1946.5,0.45405769]
[1772940916386,0.001,1946.9,1946.5,0.45405769]
[1772940922307,0.001,1946.9,1946.6,0.45405769]
[1772940930239,0.001,1946.9,1946.6,0.45515769]
[1772940930731,0.001,1946.9,1946.7,0.45405769]
[1772940931034,0.001,1947.2,1946.7,0.45405769]
[1772940931208,1.49056492,1947.2,1946.7,0.45405769]
[1772940931538,1.28492834,1947.2,1946.7,0.45405769]
[1772940931835,0.001,1947.2,1946.7,0.45405769]
[1772940934112,0.001,1947.2,1946.9,0.47585599]
[1772940936943,0.001,1947.2,1947.0,0.47585599]
[1772940942743,0.001,1947.1,1947.0,0.47585599]
[1772940954345,0.001,1947.1,1947.0,0.47695599]
[1772940960865,1.28361054,1947.7,1947.1,0.47585599]
[1772940961064,0.001,1947.8,1947.1,0.47585599]
[1772940961230,0.001,1947.8,1947.3,0.47585599]
[1772940963547,0.001,1947.8,1947.5,0.46216839]
[1772940965565,0.001,1947.8,1947.6,1.28363113]
[1772940965760,0.001,1947.8,1947.7,0.46216839]
[1772940970986,0.001,1947.8,1947.7,1.74573362]
[1772940971168,0.001,1947.8,1947.7,0.46216839]
[1772940973256,0.47166622,1948.0,1947.7,0.46216839]
[1772940973959,0.00153886,1948.0,1947.7,0.46216839]
[1772940974577,0.00153886,1948.0,1947.7,1.74572809]
[1772940974879,0.00153886,1948.0,1947.8,0.46216839]
[1772940979290,0.001,1947.9,1947.8,0.46216839]
[1772940980088,0.47012736,1948.1,1947.8,1.74565781]
[1772940980286,0.47012736,1948.1,1947.8,0.46216839]
[1772940981683,1.28326535,1948.2,1947.9,0.46216839]
[1772940981864,3.39234613,1948.3,1947.9,0.46216839]
[1772940983590,3.39334613,1948.3,1947.9,0.46216839]
[1772940984089,1.75334613,1948.3,1947.9,0.46216839]
[1772940984274,1.28321877,1948.3,1947.9,0.46216839]
[1772940985493,0.47012736,1948.2,1947.9,0.46216839]
[1772940986389,1.7533656,1948.2,1947.9,0.46216839]
[1772940987679,1.7533656,1948.2,1947.5,5.13470058]
[1772940987680,0.47012736,1948.0,1947.5,1.74586165]
[1772940987883,0.47012736,1948.0,1947.6,0.46216839]
[1772940988460,1.28317625,1948.3,1947.7,0.46216839]
[1772940990898,1.28317625,1948.3,1948.0,0.46216839]
[1772940991076,0.001,1948.1,1948.0,0.46216839]
[1772940991691,3.39416854,1948.5,1948.1,0.46216839]
[1772940991887,1.75316854,1948.5,1948.1,0.46216839]
[1772940992370,1.28304118,1948.5,1948.1,0.46216839]
[1772940994096,0.45081817,1948.1,1947.8,0.0011]
[1772940994270,0.27672987,1948.0,1947.5,1.75659499]
[1772940994466,0.27672987,1948.0,1947.5,1.75659158]
[1772940994672,0.27672987,1948.0,1947.5,1.28366516]
[1772940994994,0.27672987,1948.0,1947.6,0.47402642]
[1772940999496,1.56012754,1948.0,1947.6,0.47402642]
[1772941000398,1.28318403,1948.3,1947.7,0.47292642]
[1772941000696,1.5599139,1948.3,1947.7,0.47292642]
[1772941000901,0.27672987,1948.2,1947.7,0.47292642]
[1772941001912,1.55998163,1948.2,1947.7,1.28350372]
[1772941002102,1.55998163,1948.2,1947.8,0.47292642]
[1772941002300,0.27672987,1948.2,1947.8,0.47292642]
[1772941002812,1.55996728,1948.2,1947.8,0.47292642]
[1772941003786,1.55996728,1948.2,1947.8,0.47402642]
[1772941005915,1.55996728,1948.2,1947.8,1.75752448]
[1772941007987,1.55996728,1948.2,1947.9,0.47292642]
[1772941008188,0.27672987,1948.3,1947.9,0.47292642]
[1772941010014,1.55991627,1948.3,1947.9,1.75635318]
[1772941010220,1.55991627,1948.3,1948.0,0.47292642]
[1772941015811,1.55990383,1948.3,1948.0,0.47292642]
[1772941016817,0.001,1948.2,1948.0,0.47292642]
[1772941020344,0.001,1948.2,1948.1,0.47292642]
[1772941021961,0.001,1948.4,1948.2,0.48528333]
[1772941022453,1.28288049,1948.8,1948.2,0.46657317]
[1772941023962,1.28288049,1948.8,1948.4,0.46657317]
[1772941025185,1.5605557,1948.9,1948.4,0.46657317]
[1772941025874,0.27772987,1948.8,1948.4,0.46657317]
[1772941028264,1.28277489,1948.9,1948.5,0.46657317]
[1772941028977,1.56201693,1949.0,1948.5,0.46767317]
[1772941029174,0.001,1948.7,1948.5,0.46767317]
[1772941029749,0.27872987,1948.7,1948.5,0.0011]
[1772941031391,0.001,1948.7,1948.5,0.46767317]
[1772941032982,1.56199548,1949.0,1948.6,0.46657317]
[1772941034989,0.00153886,1949.0,1948.8,0.46657317]
[1772941035197,0.64891466,1949.2,1948.7,0.46657317]
[1772941035198,0.37018479,1949.2,1948.7,0.46657317]
[1772941035403,0.27872987,1949.1,1948.7,0.46657317]
[1772941035772,0.27872987,1949.1,1948.5,0.46767317]
[1772941038103,1.28270908,1949.0,1948.5,1.75070838]
[1772941038288,1.56143895,1949.0,1948.6,0.46657317]
[1772941038475,0.27872987,1949.0,1948.6,0.46657317]
[1772941040186,1.561494,1949.0,1948.6,0.46657317]
[1772941041309,0.001,1948.9,1948.6,0.46657317]
[1772941043914,0.47365021,1948.9,1948.5,0.46767317]
[1772941044217,0.47365021,1948.9,1948.5,0.0011]
[1772941046319,0.47365021,1948.9,1948.2,0.0011]
[1772941046320,0.47265021,1948.5,1948.2,0.0011]
[1772941046524,0.47265021,1948.3,1947.9,0.0011]
[1772941046692,0.47265021,1948.3,1947.8,0.0011]
[1772941048309,0.47265021,1948.1,1947.8,0.0011]
[1772941048915,0.47265021,1948.1,1947.8,0.46767317]
[1772941050717,0.47265021,1948.2,1947.8,0.46767317]
[1772941051211,5.13252595,1948.4,1947.8,0.46767317]
[1772941051409,1.28316994,1948.3,1947.9,0.46657317]
[1772941052132,1.28314649,1948.4,1947.9,0.46657317]
[1772941052339,1.28309168,1948.5,1947.9,0.46657317]
[1772941052723,1.73459931,1948.5,1947.9,1.28342479]
[1772941052928,1.73459931,1948.5,1948.0,0.46604612]
[1772941058156,0.45150763,1948.6,1948.1,0.46604612]
[1772941060433,1.28303823,1948.5,1948.1,0.46604612]
[1772941061757,1.73454586,1948.5,1948.1,0.46604612]
[1772941062259,0.45150763,1948.4,1948.1,0.46604612]
[1772941062439,1.73465746,1948.4,1948.1,0.46604612]
[1772941065657,1.73565746,1948.4,1948.1,0.46604612]
[1772941070036,1.2841103,1948.4,1948.1,0.46604612]
[1772941070230,0.001,1948.4,1948.2,0.46604612]
[1772941070646,1.28410608,1948.4,1948.2,0.46604612]
[1772941070862,0.001,1948.4,1948.2,0.46604612]
[1772941077085,0.001,1948.3,1948.2,0.46604612]
[1772941081895,0.001,1948.3,1948.0,1.2844142]
[1772941082097,0.001,1948.3,1948.1,0.48670774]
[1772941086801,1.28303823,1948.5,1948.2,0.47012784]
[1772941087823,1.7501952,1948.5,1948.0,1.2844144]
[1772941088029,1.7501952,1948.5,1948.1,0.47012784]
[1772941088846,0.001,1948.4,1948.1,0.47012784]
[1772941090829,0.001,1948.4,1948.2,0.47012784]